bitfinex-derivatives/quotes_BTCF0:USTF0_20250309
["timestamp","ask_amount","ask_price","bid_price","bid_amount"]
[1741562195842,0.1238096,80776.0,80765.0,0.3608]
[1741562196038,0.1238079,80777.0,80766.0,0.5253]
[1741562196239,0.1238093,80776.0,80772.0,0.3608]
[1741562196647,0.0619031,80778.0,80772.0,0.3608]
[1741562196849,0.1238108,80775.0,80772.0,0.3608]
[1741562197050,0.42291565,80780.0,80761.0,0.00018569]
[1741562197242,0.0619091,80770.0,80761.0,0.00018569]
[1741562197448,0.1238305,80762.0,80761.0,0.00018569]
[1741562197951,0.1401991,80762.0,80761.0,0.00018569]
[1741562198542,0.6580991,80762.0,80761.0,0.00018569]
[1741562199456,0.42291565,80780.0,80761.0,0.00018569]
[1741562199650,0.42291565,80780.0,80776.0,0.3608]
[1741562199846,0.2416,80779.0,80776.0,0.3608]
[1741562200057,0.2416,80779.0,80777.0,0.01707497]
[1741562200358,0.2416,80779.0,80778.0,0.01707497]
[1741562200742,0.2416,80779.0,80778.0,0.01708861]
[1741562201146,0.2416,80779.0,80778.0,0.01705387]
[1741562201348,0.22312,80800.0,80778.0,0.07895667]
[1741562201545,0.2416,80797.0,80780.0,0.0619014]
[1741562201756,0.2416,80797.0,80796.0,0.7216]
[1741562202050,0.2416,80797.0,80796.0,0.73866994]
[1741562202252,0.05852951,80800.0,80796.0,0.37786994]
[1741562202458,0.0152235,80800.0,80797.0,0.25876994]
[1741562202670,0.0152235,80800.0,80798.0,0.0171918]
[1741562202852,0.1237768,80797.0,80796.0,0.3608]
[1741562203053,0.505,80799.0,80794.0,0.3608]
[1741562203250,0.2507,80796.0,80794.0,0.3608]
[1741562203447,0.2431,80795.0,80794.0,0.3608]
[1741562203651,0.3668799,80795.0,80794.0,0.3608]
[1741562203849,0.2431,80795.0,80782.0,0.2614]
[1741562204051,0.1237885,80790.0,80782.0,0.2614]
[1741562204257,0.4938,80789.0,80787.0,0.3608]
[1741562204452,0.2507,80789.0,80783.0,0.2518]
[1741562204647,0.2507,80789.0,80772.0,0.3608]
[1741562204856,0.1238013,80781.0,80773.0,0.5132]
[1741562205059,0.1238013,80781.0,80774.0,0.3608]
[1741562205259,0.2507,80782.0,80774.0,0.3608]
[1741562205863,0.3864013,80781.0,80773.0,0.5132]
[1741562206050,0.3864013,80781.0,80774.0,0.3608]
[1741562206251,0.2626,80781.0,80774.0,0.3608]
[1741562206649,0.03117039,80800.0,80775.0,0.56789636]
[1741562206862,0.21792,80807.0,80798.0,0.1237744]
[1741562207052,0.21792,80807.0,80806.0,0.3608]
[1741562207360,0.2626,80817.0,80806.0,0.3608]
[1741562207559,0.27923839,80817.0,80807.0,0.507]
[1741562207759,0.27923839,80817.0,80815.0,0.3608]
[1741562207952,0.3608,80816.0,80799.0,0.3608]
[1741562208157,0.27923839,80817.0,80798.0,0.00927437]
[1741562208158,0.42291565,80810.0,80798.0,0.00927437]
[1741562208357,0.0618811,80807.0,80798.0,0.00927437]
[1741562208558,0.2626,80809.0,80798.0,0.00927437]
[1741562208747,0.123767,80804.0,80798.0,0.00927437]
[1741562208949,0.1237738,80799.0,80798.0,0.00927437]
[1741562209358,0.2593,80803.0,80798.0,0.00927437]
[1741562209557,0.2593,80803.0,80799.0,0.2428]
[1741562209858,0.2442,80802.0,80798.0,0.00927437]
[1741562210059,0.12308,80816.0,80801.0,0.3608]
[1741562210249,0.2442,80815.0,80803.0,0.0618836]
[1741562210451,0.2442,80815.0,80814.0,0.3608]
[1741562210858,0.2593,80822.0,80814.0,0.3608]
[1741562211161,0.21784,80828.0,80815.0,0.4908]
[1741562211356,0.5035,80826.0,80815.0,0.4908]
[1741562211761,0.1237387,80822.0,80815.0,0.4908]
[1741562211959,0.2442,80826.0,80815.0,0.4908]
[1741562212158,0.2442,80826.0,80821.0,0.3608]
[1741562212359,0.2442,80826.0,80822.0,0.4878]
[1741562212559,0.17637755,80828.0,80822.0,0.4878]
[1741562212751,0.5017,80839.0,80822.0,0.8486]
[1741562213062,0.2488,80839.0,80831.0,0.3608]
[1741562213648,0.20548049,80839.0,80838.0,0.3608]
[1741562213852,0.20548049,80839.0,80832.0,0.4878]
[1741562214056,0.16216098,80839.0,80832.0,0.4878]
[1741562214254,0.11884147,80839.0,80832.0,0.4878]
[1741562214450,0.05668049,80843.0,80838.0,0.3608]
[1741562214655,0.00185638,80859.0,80840.0,0.3608]
[1741562214855,0.4798,80866.0,80853.0,0.3608]
[1741562215064,0.4798,80866.0,80854.0,0.4974]
[1741562215254,0.54659065,80864.0,80854.0,0.4974]
[1741562215454,0.262,80863.0,80854.0,0.4974]
[1741562215655,0.2178,80866.0,80854.0,0.4974]
[1741562216154,0.2178,80866.0,80854.0,0.50670874]
[1741562216457,0.21550584,80888.0,80865.0,0.3608]
[1741562216458,0.19791284,80879.0,80865.0,0.3608]
[1741562216662,0.19791284,80879.0,80866.0,0.5002]
[1741562216858,0.123653,80878.0,80866.0,0.5002]
[1741562217060,0.19791284,80879.0,80867.0,0.01719006]
[1741562217251,0.13746725,80881.0,80868.0,0.01719006]
[1741562217456,0.21521284,80880.0,80869.0,0.01719006]
[1741562217653,0.13746725,80881.0,80879.0,0.3608]
[1741562217954,0.00185599,80883.0,80865.0,0.3608]
[1741562217955,0.00185599,80883.0,80880.0,0.50779006]
[1741562218162,0.01828222,80883.0,80881.0,0.01719006]
[1741562218364,0.00185599,80883.0,80880.0,0.3608]
[1741562218554,0.52291565,80900.0,80880.0,0.3608]
[1741562218555,0.1,80900.0,80881.0,0.4877]
[1741562218869,0.21491284,80891.0,80881.0,0.50372615]
[1741562219164,0.11631239,80900.0,80882.0,0.00018546]
[1741562219358,0.07302523,80900.0,80882.0,0.00018546]
[1741562219560,0.02973807,80900.0,80882.0,0.00018546]
[1741562219860,0.3608,80907.0,80882.0,0.00018546]
[1741562220071,0.0618096,80900.0,80882.0,0.00018546]
[1741562220259,0.1236198,80900.0,80882.0,0.00018546]
[1741562220560,0.9763257,80906.0,80889.0,0.3608]
[1741562220561,1.05407626,80906.0,80889.0,0.3608]
[1741562220761,0.0618132,80896.0,80890.0,0.5043]
[1741562220967,0.3608,80894.0,80882.0,0.00018546]
[1741562221159,0.3608,80904.0,80890.0,0.3608]
[1741562221468,0.1236452,80883.0,80882.0,0.00018546]
[1741562221656,0.1238,80893.0,80882.0,0.00018546]
[1741562221859,0.3608,80906.0,80892.0,0.3608]
[1741562222056,0.37703757,80906.0,80893.0,0.4992]
[1741562222261,0.3608,80909.0,80900.0,0.3608]
[1741562222462,0.01648478,80919.0,80907.0,0.3608]
[1741562222755,0.2643,80928.0,80917.0,0.3608]
[1741562223066,0.62634,80951.0,80925.0,0.3608]
[1741562223268,0.14518784,80962.0,80944.0,0.3608]
[1741562223456,0.10190068,80962.0,80961.0,0.3608]
[1741562223656,0.05861352,80962.0,80961.0,0.3608]
[1741562223860,0.17226754,80976.0,80962.0,0.0617622]
[1741562224062,0.24652376,80991.0,80975.0,0.7216]
[1741562224270,0.20328546,80991.0,80990.0,0.3608]
[1741562224468,0.16004716,80991.0,80990.0,0.3608]
[1741562224872,0.11680886,80991.0,80990.0,0.3608]
[1741562225063,0.23770983,80998.0,80990.0,0.3608]
[1741562225372,0.19447153,80998.0,80997.0,0.3608]
[1741562225567,0.15123323,80998.0,80997.0,0.3608]
[1741562225760,0.10799493,80998.0,80997.0,0.5108]
[1741562225962,0.35113768,81012.0,80997.0,0.5108]
[1741562226264,0.35113768,81012.0,80998.0,0.243]
[1741562226465,0.27278561,81005.0,81004.0,0.3608]
[1741562226859,0.1234666,81000.0,80999.0,0.1234606]
[1741562227061,0.27278561,81005.0,80999.0,0.3608]
[1741562227260,0.63358561,81005.0,81000.0,0.243]
[1741562227470,0.3608,81001.0,80959.0,0.20709636]
[1741562227665,0.3608,81001.0,80933.0,0.3608]
[1741562227666,0.3608,80967.0,80957.0,0.00930426]
[1741562227867,0.3608,80978.0,80972.0,0.12344993]
[1741562228063,0.3608,80978.0,80950.0,0.42291565]
[1741562228064,0.3608,80978.0,80973.0,0.258]
[1741562228272,0.3608,80977.0,80973.0,0.258]
[1741562228465,8.764e-05,80976.0,80973.0,0.258]
[1741562229171,0.7216,80974.0,80973.0,0.258]
[1741562229359,0.8451063,80974.0,80973.0,0.258]
[1741562229562,0.7216,80974.0,80968.0,0.258]
[1741562229765,0.1235154,80968.0,80967.0,0.00018521]
[1741562230070,0.3608,80968.0,80958.0,0.00010496]
[1741562230365,8.764e-05,80976.0,80975.0,0.1235047]
[1741562230569,0.3608,80982.0,80968.0,0.5213]
[1741562230767,0.5091,81007.0,80968.0,0.26]
[1741562230768,0.4843139,80969.0,80968.0,0.26]
[1741562230968,0.3608,80985.0,80969.0,0.1234949]
[1741562231270,0.7216,80970.0,80967.0,0.00018521]
[1741562231570,4.137e-05,80969.0,80967.0,0.00018521]
[1741562232164,4.137e-05,80969.0,80968.0,0.24702098]
[1741562232366,0.3608,80984.0,80974.0,0.0617525]
[1741562232570,0.5091,81006.0,80976.0,0.0617516]
[1741562232872,0.3608,80990.0,80983.0,0.0617459]
[1741562233171,0.3608,80990.0,80985.0,0.1234895]
[1741562233370,0.3608,80990.0,80986.0,0.2478]
[1741562233667,0.3608,80990.0,80986.0,0.37128804]
[1741562233867,0.3608,80990.0,80986.0,0.2478]
[1741562234064,0.3608,80989.0,80986.0,0.2478]
[1741562234370,0.1234956,80981.0,80980.0,0.00018521]
[1741562234667,0.3608,80981.0,80964.0,0.2478]
[1741562234872,0.3608,80970.0,80967.0,0.061758]
[1741562235065,0.3608,80970.0,80968.0,0.2478]
[1741562235270,0.3608,80970.0,80969.0,0.13056]
[1741562235467,0.3608,80970.0,80969.0,0.2540739]
[1741562235663,0.3548,80970.0,80968.0,0.2478]
[1741562236067,0.3548,80970.0,80969.0,0.2639]
[1741562236371,0.00018521,80978.0,80972.0,0.0617545]
[1741562236566,0.3608,80973.0,80969.0,0.2639]
[1741562236870,0.0617563,80970.0,80961.0,0.00018521]
[1741562237059,0.3608,80973.0,80961.0,0.00018521]
[1741562237369,0.3608,80962.0,80961.0,0.00018521]
[1741562237972,0.526,80970.0,80961.0,0.00018521]
[1741562238271,0.3608,80962.0,80961.0,0.00018521]
[1741562238466,0.12251241,80965.0,80961.0,0.00018521]
[1741562238772,0.526,80964.0,80961.0,0.00018521]
[1741562238970,0.526,80964.0,80939.0,0.2461]
[1741562239165,0.3608,80959.0,80939.0,0.2461]
[1741562239374,0.42291565,80950.0,80939.0,0.2461]
[1741562239671,0.5159,80949.0,80939.0,0.2461]
[1741562240181,0.00010496,80948.0,80939.0,0.2461]
[1741562240474,0.3608,80940.0,80936.0,0.00018521]
[1741562240768,0.2546,80939.0,80936.0,0.00018521]
[1741562240970,0.3608,80937.0,80936.0,0.00018521]
[1741562241364,0.6154,80937.0,80936.0,0.00018521]
[1741562241573,0.7389627,80937.0,80936.0,0.00018521]
[1741562241767,0.0617826,80936.0,80924.0,0.00013728]
[1741562241971,0.3608,80925.0,80924.0,0.00013728]
[1741562242283,0.1235941,80917.0,80900.0,0.11514039]
[1741562242574,0.36089936,80925.0,80901.0,0.2525]
[1741562242575,0.3608,80908.0,80901.0,0.2525]
[1741562242764,0.5253,80924.0,80901.0,0.2525]
[1741562242765,0.3608,80911.0,80901.0,0.50869365]
[1741562242960,0.00018533,80913.0,80901.0,0.3761167]
[1741562243276,0.3608,80903.0,80900.0,0.10923275]
[1741562243573,0.50241542,80902.0,80900.0,0.10923275]
[1741562243773,0.50241542,80902.0,80896.0,0.00018533]
[1741562243774,0.1236238,80897.0,80896.0,0.00018533]
[1741562243971,0.123636,80889.0,80888.0,0.29020171]
[1741562244173,0.7834181,80889.0,80866.0,0.2525]
[1741562244474,0.42291565,80887.0,80877.0,0.44866372]
[1741562244664,0.00185572,80906.0,80886.0,0.3608]
[1741562244868,0.00185572,80906.0,80905.0,0.1236116]
[1741562245065,0.00010401,80906.0,80905.0,0.4844116]
[1741562245375,0.00018545,80914.0,80905.0,0.3608]
[1741562245570,0.00018545,80914.0,80906.0,0.5067]
[1741562245763,0.00018545,80914.0,80906.0,0.2665]
[1741562246170,9.264e-05,80913.0,80906.0,0.2665]
[1741562247871,9.264e-05,80913.0,80909.0,0.3608]
[1741562248078,9.264e-05,80913.0,80912.0,0.3608]
[1741562248672,9.264e-05,80913.0,80910.0,0.5067]
[1741562248880,9.264e-05,80913.0,80910.0,0.2665]
[1741562249173,9.264e-05,80913.0,80911.0,0.241]
[1741562249377,9.264e-05,80913.0,80910.0,0.2665]
[1741562249864,9.264e-05,80913.0,80912.0,0.3608]
[1741562250074,9.264e-05,80913.0,80911.0,0.3608]
[1741562250376,9.264e-05,80913.0,80910.0,0.2665]
[1741562250775,0.1236146,80903.0,80883.0,0.3608]
[1741562250976,0.1236146,80903.0,80884.0,0.25]
[1741562251576,0.123636,80889.0,80884.0,0.25]
[1741562251876,0.484436,80889.0,80884.0,0.25]
[1741562252071,0.484436,80889.0,80876.0,0.3608]
[1741562252269,1.0896179,80889.0,80865.0,0.2505]
[1741562252466,0.1236644,80871.0,80853.0,0.2428]
[1741562252670,0.053,80870.0,80869.0,0.00018545]
[1741562253165,0.1236789,80861.0,80860.0,0.00185489]
[1741562253373,0.3608,80861.0,80860.0,0.00185489]
[1741562253569,0.3608,80861.0,80860.0,0.01132383]
[1741562253772,0.05313021,80870.0,80860.0,0.00185489]
[1741562253970,0.05313021,80870.0,80861.0,0.2505]
[1741562254369,0.00013021,80870.0,80861.0,0.2505]
[1741562254671,0.00013021,80870.0,80863.0,0.3608]
[1741562254873,0.00013021,80870.0,80869.0,0.3608]
[1741562255067,0.00013021,80870.0,80863.0,0.3608]
[1741562255482,0.00013021,80870.0,80864.0,0.3608]
[1741562255678,0.00013021,80870.0,80862.0,0.2441]
[1741562255875,0.00013021,80870.0,80869.0,0.3608]
[1741562256276,0.00013021,80870.0,80862.0,0.2441]
[1741562256577,0.33811566,80884.0,80862.0,0.2441]
[1741562256976,0.2622,80883.0,80875.0,0.3608]
[1741562257180,0.2622,80883.0,80876.0,0.4952]
[1741562257374,0.21744,80896.0,80882.0,0.3608]
[1741562257571,0.00018545,80888.0,80883.0,0.2554]
[1741562258182,0.17450132,80896.0,80883.0,0.2554]
[1741562258380,0.3608,80903.0,80891.0,0.3608]
[1741562258581,0.1236281,80895.0,80892.0,0.2554]
[1741562258783,0.1236299,80893.0,80892.0,0.2554]
[1741562258974,0.1236529,80878.0,80877.0,0.00018545]
[1741562259174,9.892e-05,80878.0,80877.0,0.00018545]
[1741562259682,0.49967538,80878.0,80877.0,0.00018545]
[1741562259880,0.49967538,80878.0,80860.0,0.00185489]
[1741562259881,0.1236773,80862.0,80861.0,0.2554]
[1741562260188,0.1236773,80862.0,80825.0,0.13104]
[1741562260189,0.72170219,80862.0,80825.0,0.13104]
[1741562260373,0.3608,80853.0,80842.0,0.2547]
[1741562260680,0.1237049,80844.0,80843.0,0.2554]
[1741562260880,0.42291565,80850.0,80843.0,0.2554]
[1741562261075,0.2418,80845.0,80843.0,0.2554]
[1741562261974,0.00018545,80852.0,80843.0,0.2554]
[1741562262176,0.00010219,80862.0,80846.0,0.3608]
[1741562262375,0.00010219,80862.0,80853.0,0.3608]
[1741562262573,0.00010219,80862.0,80854.0,0.5117]
[1741562262775,0.00010219,80862.0,80854.0,0.257]
[1741562263180,0.00010219,80862.0,80855.0,0.2547]
[1741562263481,0.36265613,80882.0,80859.0,0.7216]
[1741562263677,0.31935967,80882.0,80871.0,0.3608]
[1741562263878,0.31935967,80882.0,80872.0,0.5097]
[1741562264081,0.27606321,80882.0,80872.0,0.5097]
[1741562264281,0.0618258,80879.0,80872.0,0.5097]
[1741562264685,0.27606321,80882.0,80872.0,0.2472]
[1741562264882,0.4844605,80873.0,80872.0,0.2472]
[1741562265186,0.0618331,80870.0,80861.0,0.00925554]
[1741562265378,0.3608,80862.0,80850.0,0.5097]
[1741562265585,0.1236942,80851.0,80850.0,0.2472]
[1741562266072,0.2517,80851.0,80850.0,0.2472]
[1741562266681,0.2517,80851.0,80842.0,0.00018545]
[1741562266682,0.1237064,80843.0,80842.0,0.00018545]
[1741562266983,0.4845064,80843.0,80842.0,0.00018545]
[1741562267580,0.6568,80843.0,80842.0,0.00018545]
[1741562267887,0.9109064,80843.0,80842.0,0.00018545]
[1741562269187,0.7111,80843.0,80842.0,0.00018545]
[1741562269382,0.5807,80843.0,80842.0,0.00018545]
[1741562269583,0.2429,80843.0,80842.0,0.00018545]
[1741562269781,0.7274064,80843.0,80842.0,0.00018545]
[1741562271085,0.9450064,80843.0,80842.0,0.00018545]
[1741562271492,0.9713,80843.0,80833.0,0.2622]
[1741562271683,0.4845202,80834.0,80833.0,0.2622]
[1741562271882,0.3608,80834.0,80833.0,0.27128604]
[1741562272587,0.4845202,80834.0,80833.0,0.27128604]
[1741562272779,0.5374202,80834.0,80833.0,0.27128604]
[1741562272980,0.5374202,80834.0,80833.0,0.25403832]
[1741562273377,0.1237324,80826.0,80825.0,0.00018557]
[1741562273786,0.6112,80827.0,80825.0,0.00018557]
[1741562273988,0.2504,80826.0,80825.0,0.00018557]
[1741562274293,0.3608,80827.0,80825.0,0.00962982]
[1741562274487,0.3608,80827.0,80826.0,0.2465]
[1741562275084,9.552e-05,80834.0,80833.0,0.1237217]
[1741562275391,9.552e-05,80834.0,80830.0,0.3608]
[1741562275582,9.552e-05,80834.0,80831.0,0.2414]
[1741562275781,9.552e-05,80834.0,80833.0,0.1237217]
[1741562276086,0.57844,80862.0,80832.0,0.2438]
[1741562276287,0.57844,80862.0,80840.0,0.3608]
[1741562276483,0.42291565,80860.0,80841.0,0.4983]
[1741562276782,0.1236905,80854.0,80841.0,0.4983]
[1741562276982,0.12784,80856.0,80848.0,0.3608]
[1741562277182,0.12802557,80856.0,80849.0,0.4983]
[1741562277393,0.00018557,80856.0,80849.0,0.4983]
[1741562277786,0.0618452,80854.0,80849.0,0.4983]
[1741562277984,0.1236957,80850.0,80849.0,0.4983]
[1741562278288,0.0618469,80852.0,80849.0,0.4983]
[1741562278493,0.3608,80854.0,80849.0,0.4983]
[1741562278686,0.1236957,80850.0,80849.0,0.4983]
[1741562278881,0.3215455,80853.0,80849.0,0.4983]
[1741562278882,0.2597,80853.0,80849.0,0.4983]
[1741562279391,0.2597,80853.0,80849.0,0.2569]
[1741562279392,0.1236957,80850.0,80849.0,0.2569]
[1741562279697,0.1237095,80841.0,80840.0,0.2405]
[1741562279897,0.1237095,80841.0,80840.0,0.5066]
[1741562280202,0.1237095,80841.0,80840.0,0.2661]
[1741562280494,0.123737,80823.0,80822.0,0.2405]
[1741562280685,0.484537,80823.0,80822.0,0.2405]
[1741562280885,0.061867,80825.0,80806.0,0.2602]
[1741562281084,0.68261565,80822.0,80810.0,0.2405]
[1741562281491,0.1237554,80811.0,80810.0,0.2405]
[1741562281687,0.1237554,80811.0,80809.0,0.01368836]
[1741562281688,0.1237569,80810.0,80809.0,0.01368836]
[1741562281890,0.7278569,80810.0,80809.0,0.01368836]
[1741562282193,0.9457569,80810.0,80809.0,0.00443437]
[1741562283186,1.0957569,80810.0,80809.0,0.00443437]
[1741562284483,0.822,80810.0,80801.0,0.22888025]
[1741562284690,0.3608,80802.0,80801.0,0.22888025]
[1741562284893,0.57848,80802.0,80801.0,0.48028025]
[1741562285090,0.21768,80802.0,80801.0,0.60405095]
[1741562285292,0.5787,80810.0,80809.0,0.1237584]
[1741562285590,0.00018557,80824.0,80807.0,0.3608]
[1741562285896,0.00185731,80831.0,80820.0,0.3608]
[1741562286085,0.00185731,80831.0,80828.0,0.123728]
[1741562286292,0.3608,80855.0,80827.0,0.3608]
[1741562286293,0.21768,80856.0,80830.0,0.3608]
[1741562286494,0.21768,80856.0,80842.0,0.3608]
[1741562286793,0.21768,80856.0,80843.0,0.2514]
[1741562287296,0.18197755,80855.0,80847.0,0.3608]
[1741562287491,0.21712873,80860.0,80854.0,0.3608]
[1741562287691,0.1738102,80860.0,80854.0,0.3608]
[1741562288388,0.21768,80875.0,80854.0,0.3608]
[1741562288588,0.42291565,80870.0,80854.0,0.3608]
[1741562288793,0.3608,80868.0,80854.0,0.3608]
[1741562288993,0.123688,80855.0,80854.0,0.3608]
[1741562289695,0.522,80856.0,80854.0,0.3608]
[1741562290094,0.0618245,80881.0,80854.0,0.3608]
[1741562290095,0.3608,80879.0,80854.0,0.5108]
[1741562290396,0.3608,80879.0,80866.0,0.3608]
[1741562290594,0.01531529,80873.0,80855.0,0.3608]
[1741562290894,0.00018557,80873.0,80856.0,0.2445]
[1741562291099,0.00018557,80873.0,80866.0,0.3608]
[1741562291296,0.1236682,80868.0,80867.0,0.2445]
[1741562292401,0.1236835,80858.0,80856.0,0.2575]
[1741562292595,0.36098557,80873.0,80856.0,0.2575]
[1741562292596,0.3608,80866.0,80856.0,0.2575]
[1741562293000,0.12654557,80873.0,80856.0,0.2575]
[1741562293296,0.12654557,80873.0,80865.0,0.3608]
[1741562293495,0.00018557,80873.0,80866.0,0.2575]
[1741562293699,0.01484689,80879.0,80872.0,0.3608]
[1741562293903,0.3412703,80893.0,80873.0,0.2575]
[1741562294087,0.23216584,80893.0,80873.0,0.2575]
[1741562294288,0.1236408,80886.0,80874.0,0.2564]
[1741562294493,0.0618163,80892.0,80874.0,0.2564]
[1741562294697,0.46666584,80893.0,80874.0,0.2564]
[1741562294897,0.1236424,80885.0,80875.0,0.00018557]
[1741562295103,0.0618198,80887.0,80875.0,0.00018557]
[1741562295397,0.00018557,80891.0,80875.0,0.00018557]
[1741562295598,0.00018557,80891.0,80879.0,0.3608]
[1741562295901,0.0018558,80896.0,80887.0,0.1236378]
[1741562296090,0.0018558,80896.0,80895.0,0.3608]
[1741562296593,0.2176,80911.0,80895.0,0.3608]
[1741562296794,0.2176,80911.0,80895.0,0.37581781]
[1741562296991,0.21778545,80911.0,80896.0,0.5107]
[1741562297703,0.21778545,80911.0,80902.0,0.3608]
[1741562297899,0.21778545,80911.0,80903.0,0.2408]
[1741562298102,0.4844131,80904.0,80903.0,0.2408]
[1741562298302,0.4844131,80904.0,80896.0,0.2511]
[1741562298303,0.1236238,80897.0,80896.0,0.00915721]
[1741562298597,0.1236238,80897.0,80895.0,0.00018545]
[1741562298598,0.1236253,80896.0,80895.0,0.00018545]
[1741562298794,0.6343253,80896.0,80895.0,0.00018545]
[1741562300209,0.7286,80896.0,80880.0,0.36655846]
[1741562300402,0.3608,80885.0,80881.0,0.2588]
[1741562300704,0.47104,80896.0,80881.0,0.9976479]
[1741562301004,0.2179,80896.0,80882.0,0.3608]
[1741562301201,0.2462,80908.0,80882.0,0.3608]
[1741562301400,0.2179,80920.0,80895.0,0.3608]
[1741562301596,0.2179,80920.0,80902.0,0.3608]
[1741562301797,0.01506562,80919.0,80903.0,0.2588]
[1741562302003,0.2179,80920.0,80910.0,0.3608]
[1741562302203,0.00064,80927.0,80918.0,0.3608]
[1741562302502,0.21756,80929.0,80919.0,0.5132]
[1741562302805,0.0617882,80928.0,80919.0,0.5132]
[1741562303003,0.21756,80929.0,80919.0,0.5132]
[1741562303701,0.2506,80928.0,80919.0,0.2588]
[1741562303899,0.3608,80924.0,80914.0,0.00018545]
[1741562304096,0.2506,80923.0,80914.0,0.00018545]
[1741562304496,0.0617936,80921.0,80914.0,0.00018545]
[1741562304700,0.2179,80923.0,80914.0,0.00018545]
[1741562305505,0.2179,80923.0,80914.0,0.25458545]
[1741562306401,0.21756,80929.0,80921.0,0.3608]
[1741562306699,0.21756,80929.0,80922.0,0.521]
[1741562307206,0.5122,80928.0,80922.0,0.521]
[1741562308004,0.21756,80929.0,80922.0,0.521]
[1741562308605,0.2461,80928.0,80922.0,0.521]
[1741562309106,0.3608,80927.0,80921.0,0.00906123]
[1741562309305,0.1235963,80915.0,80914.0,0.00018545]
[1741562309510,0.3608,80915.0,80914.0,0.00018545]
[1741562309711,0.12312,80922.0,80914.0,0.00018545]
[1741562310009,0.3608,80925.0,80914.0,0.00018545]
[1741562310405,0.3608,80925.0,80916.0,0.3608]
[1741562311007,0.00018545,80931.0,80916.0,0.3608]
[1741562311205,0.00018545,80931.0,80923.0,0.3608]
[1741562311506,0.00018545,80931.0,80917.0,0.2619]
[1741562311507,0.00018545,80931.0,80930.0,0.3608]
[1741562312207,0.00018545,80931.0,80930.0,0.37538751]
[1741562312610,0.21748,80947.0,80930.0,0.50810609]
[1741562312803,0.21748,80947.0,80931.0,0.5065]
[1741562313004,0.21748,80947.0,80932.0,0.12312]
[1741562313200,0.21748,80947.0,80937.0,0.3608]
[1741562313508,0.21748,80947.0,80938.0,0.5065]
[1741562313910,0.21748,80947.0,80946.0,0.3608]
[1741562314115,0.00018465,80950.0,80946.0,0.3608]
[1741562314406,0.00018465,80950.0,80947.0,0.5065]
[1741562316213,0.00064,80972.0,80947.0,0.5065]
[1741562316402,0.42291565,80990.0,80971.0,0.3608]
[1741562316711,0.80401325,80980.0,80972.0,0.2496]
[1741562316913,0.2438,80979.0,80959.0,0.12308]
[1741562317113,0.4353,80979.0,80960.0,0.2496]
[1741562317415,0.4353,80979.0,80964.0,0.1235208]
[1741562317612,0.2576,80978.0,80970.0,0.3608]
[1741562317815,0.5751482,80978.0,80971.0,0.2496]
[1741562318016,0.2438,80977.0,80961.0,0.00018533]
[1741562318215,0.42291565,80971.0,80961.0,0.00018533]
[1741562318415,0.2523,80970.0,80961.0,0.00018533]
[1741562318615,0.4843246,80962.0,80961.0,0.00018533]
[1741562319515,0.49908046,80962.0,80961.0,0.00018533]
[1741562319817,0.1235459,80948.0,80940.0,0.3608]
[1741562320013,0.3608,80952.0,80941.0,0.2527]
[1741562320208,0.42291565,80960.0,80941.0,0.2527]
[1741562320405,0.2179,80961.0,80942.0,0.2542]
[1741562320605,0.2179,80961.0,80948.0,0.3608]
[1741562320813,0.2179,80961.0,80949.0,0.5069]
[1741562320814,0.42310098,80960.0,80949.0,0.5069]
[1741562321110,0.1235374,80954.0,80949.0,0.5069]
[1741562321314,0.5051,80953.0,80943.0,0.00018533]
[1741562321514,0.5051,80953.0,80921.0,0.3608]
[1741562321515,0.0617777,80942.0,80921.0,0.3608]
[1741562321814,0.99619445,80941.0,80927.0,0.2466]
[1741562322014,0.93441565,80941.0,80927.0,0.2466]
[1741562322216,0.3608,80933.0,80921.0,0.36252]
[1741562322415,0.5115,80932.0,80922.0,0.2466]
[1741562322615,0.1235807,80926.0,80923.0,0.00018533]
[1741562322817,0.1235826,80924.0,80923.0,0.00018533]
[1741562323116,0.4843826,80924.0,80923.0,0.00018533]
[1741562323316,1.2137826,80924.0,80923.0,0.00018533]
[1741562323913,0.1235933,80917.0,80915.0,0.00928299]
[1741562324114,0.6074333,80917.0,80915.0,0.00928299]
[1741562324517,0.6074333,80917.0,80912.0,0.29246651]
[1741562324717,0.8709333,80917.0,80912.0,0.29246651]
[1741562325119,0.2179,80924.0,80914.0,0.00927187]
[1741562325316,0.2179,80924.0,80923.0,0.3608]
[1741562325621,0.2476,80931.0,80916.0,0.3609257]
[1741562326119,0.2179,80938.0,80924.0,0.3608]
[1741562326320,0.2179,80938.0,80936.0,0.3608]
[1741562326512,0.3608,80949.0,80937.0,0.502]
[1741562326719,0.00185432,80950.0,80943.0,0.3608]
[1741562326913,0.00185432,80950.0,80944.0,0.2612]
[1741562327120,0.00185432,80950.0,80944.0,0.502]
[1741562327421,0.2256,80949.0,80944.0,0.502]
[1741562327826,0.2256,80949.0,80944.0,0.2612]
[1741562328223,0.00185432,80950.0,80944.0,0.2612]
[1741562328426,0.00185432,80950.0,80945.0,0.2453]
[1741562328929,0.00185432,80950.0,80946.0,0.2454]
[1741562329426,0.00185432,80950.0,80947.0,0.2453]
[1741562329929,0.00185432,80950.0,80948.0,0.2454]
[1741562330527,0.00185432,80950.0,80949.0,0.2587]
[1741562331533,0.00018533,80955.0,80949.0,0.2587]
[1741562332432,0.00018533,80955.0,80954.0,0.1235368]
[1741562332629,0.00018533,80955.0,80951.0,0.3608]
[1741562332839,0.00018533,80955.0,80952.0,0.5036]
[1741562333740,0.00018533,80955.0,80953.0,0.03990261]
[1741562334042,0.00018533,80955.0,80952.0,0.5036]
[1741562334538,0.1235383,80953.0,80952.0,0.2449]
[1741562334835,0.5513684,80954.0,80945.0,0.12304]
[1741562335139,0.5513684,80954.0,80946.0,0.2472]
[1741562335140,0.5901401,80952.0,80946.0,0.2472]
[1741562335340,0.4666,80952.0,80939.0,0.29265184]
[1741562335536,0.42291565,80950.0,80939.0,0.29265184]
[1741562335839,0.1235581,80940.0,80939.0,0.29265184]
[1741562336635,0.5883581,80940.0,80939.0,0.29265184]
[1741562336939,0.7383581,80940.0,80939.0,0.29265184]
[1741562337333,0.6148,80940.0,80918.0,0.2503]